bitfinex/quotes_BTCUSD_20210402
["timestamp","ask_amount","ask_price","bid_price","bid_amount"]
[1617325641432,0.389554,58699.0,58692.0,0.15378302]
[1617325641633,0.145,58698.0,58693.0,0.08842117]
[1617325641850,0.554554,58697.0,58693.0,0.08842117]
[1617325642454,0.389554,58697.0,58693.0,0.08842117]
[1617325643452,0.35875,58701.0,58693.0,0.08842117]
[1617325643653,0.468507,58712.0,58693.0,0.08842117]
[1617325643851,1.239554,58711.0,58699.0,0.004]
[1617325644051,0.255553,58704.0,58699.0,0.004]
[1617325644251,0.389554,58703.0,58700.0,0.08842855]
[1617325644681,0.389554,58703.0,58699.0,0.08842376]
[1617325644885,0.389554,58703.0,58701.0,0.08842124]
[1617325645280,0.389554,58703.0,58700.0,0.08842914]
[1617325645480,0.389554,58703.0,58696.0,0.0064]
[1617325645681,1.170529,58713.0,58699.0,0.0036]
[1617325645883,1.239554,58712.0,58702.0,0.0064]
[1617325646110,1.239554,58712.0,58703.0,0.08839328]
[1617325646510,1.239554,58712.0,58704.0,0.006]
[1617325646722,1.239554,58712.0,58705.0,0.0883777]
[1617325646723,0.85,58711.0,58705.0,0.0883777]
[1617325646909,0.389554,58707.0,58705.0,0.0883777]
[1617325647109,0.389554,58706.0,58705.0,0.0883777]
[1617325647314,0.574554,58706.0,58702.0,0.08838684]
[1617325647518,0.389554,58706.0,58702.0,0.08838684]
[1617325652457,0.389554,58706.0,58701.0,0.08834518]
[1617325652858,0.389554,58706.0,58694.0,0.08836189]
[1617325653057,0.389554,58706.0,58695.0,0.006]
[1617325653259,0.389554,58706.0,58694.0,0.08836189]
[1617325653672,0.13239,58699.0,58694.0,0.24836189]
[1617325653858,0.18,58697.0,58694.0,0.08836189]
[1617325654061,0.794974,58696.0,58695.0,0.08857255]
[1617325654260,0.794974,58696.0,58687.0,0.08856893]
[1617325654460,0.40542,58696.0,58686.0,0.08857169]
[1617325654660,0.18,58695.0,58687.0,0.389554]
[1617325655096,0.18,58695.0,58688.0,0.08856973]
[1617325655299,0.18,58695.0,58689.0,0.389554]
[1617325655797,0.18,58695.0,58690.0,0.08855265]
[1617325655999,0.13239,58699.0,58691.0,0.389554]
[1617325656399,0.255562,58701.0,58691.0,0.389554]
[1617325656599,0.27172814,58700.0,58688.0,0.0048]
[1617325657000,0.07172814,58700.0,58689.0,0.0885677]
[1617325657612,0.307002,58701.0,58691.0,0.0052]
[1617325657816,0.05144,58701.0,58695.0,0.14016397]
[1617325658014,0.127773,58706.0,58696.0,0.18314549]
[1617325658213,0.127773,58706.0,58696.0,0.08853176]
[1617325658412,0.127773,58706.0,58697.0,0.08852509]
[1617325658413,0.734554,58705.0,58697.0,0.08852509]
[1617325658613,0.734554,58705.0,58704.0,0.12340276]
[1617325658816,0.734554,58705.0,58704.0,0.21192228]
[1617325659215,2.2269219,58705.0,58704.0,0.21192228]
[1617325659415,2.2269219,58705.0,58704.0,0.08851952]
[1617325659817,2.3859219,58705.0,58698.0,0.08855466]
[1617325660017,0.645,58704.0,58698.0,0.08855466]
[1617325660238,0.389554,58703.0,58698.0,0.08855466]
[1617325660439,0.389554,58703.0,58690.0,0.15653623]
[1617325660637,0.675,58702.0,58699.0,0.08854855]
[1617325660839,0.389554,58701.0,58692.0,0.0062]
[1617325661245,0.53,58701.0,58693.0,0.08855498]
[1617325661441,1.379,58705.0,58693.0,0.08855498]
[1617325661642,0.255551,58703.0,58695.0,0.0038]
[1617325661844,0.924554,58702.0,58695.0,0.0038]
[1617325662041,0.924554,58702.0,58696.0,0.08854244]
[1617325663242,0.389554,58702.0,58697.0,0.062]
[1617325663442,0.389554,58702.0,58698.0,0.08852791]
[1617325663647,0.127773,58706.0,58699.0,0.062]
[1617325663852,0.5974,58715.0,58705.0,0.1455389]
[1617325663853,0.127759,58714.0,58705.0,0.1455389]
[1617325664046,0.629554,58707.0,58705.0,0.1455389]
[1617325664247,0.629554,58707.0,58706.0,0.14948454]
[1617325664444,0.629554,58707.0,58706.0,0.19948454]
[1617325665449,0.629554,58707.0,58706.0,0.15048454]
[1617325665664,0.9019219,58707.0,58706.0,0.15048454]
[1617325665861,0.9019219,58707.0,58706.0,0.20048454]
[1617325666062,0.629554,58707.0,58706.0,1.06048454]
[1617325666260,0.629554,58707.0,58706.0,0.20048454]
[1617325668295,0.389554,58707.0,58706.0,0.20048454]
[1617325668491,0.127759,58714.0,58706.0,0.20048454]
[1617325668691,0.389554,58713.0,58712.0,0.03895818]
[1617325668890,0.859554,58713.0,58712.0,0.03895818]
[1617325669091,0.859554,58713.0,58712.0,0.112]
[1617325669290,0.859554,58713.0,58712.0,0.20014094]
[1617325669690,0.85934846,58713.0,58712.0,0.20014094]
[1617325669893,1.13171636,58713.0,58712.0,0.20014094]
[1617325670092,2.42171636,58713.0,58712.0,0.08814094]
[1617325670291,2.42171636,58713.0,58712.0,0.30114094]
[1617325670691,2.42171636,58713.0,58712.0,0.19614094]
[1617325670918,2.52171636,58713.0,58712.0,0.19614094]
[1617325671114,3.32371636,58713.0,58712.0,0.19614094]
[1617325671515,3.32371636,58713.0,58712.0,0.18114094]
[1617325671713,3.32371636,58713.0,58712.0,0.26114094]
[1617325672114,3.27371636,58713.0,58712.0,0.26114094]
[1617325672513,3.32371636,58713.0,58712.0,0.30015783]
[1617325672712,3.32371636,58713.0,58712.0,0.12215783]
[1617325673114,3.32371636,58713.0,58712.0,0.04901689]
[1617325673316,3.32371636,58713.0,58712.0,0.0982685]
[1617325673941,3.32371636,58713.0,58712.0,0.1252685]
[1617325674340,3.91371636,58713.0,58712.0,0.1152685]
[1617325674742,4.01371636,58713.0,58712.0,0.15436896]
[1617325674940,4.01371636,58713.0,58712.0,0.06610046]
[1617325675145,4.01371636,58713.0,58694.0,0.15640185]
[1617325675146,1.93,58712.0,58694.0,0.15640185]
[1617325675349,0.165,58697.0,58694.0,0.15640185]
[1617325675548,0.56965,58697.0,58693.0,0.15662754]
[1617325675744,2.319512,58694.0,58693.0,0.15662754]
[1617325675944,2.319512,58694.0,58689.0,0.15674449]
[1617325676196,2.319512,58694.0,58682.0,0.17]
[1617325676197,0.735614,58693.0,58688.0,0.15679844]
[1617325676391,0.984512,58692.0,58688.0,0.15679844]
[1617325676590,0.984512,58692.0,58689.0,0.08799374]
[1617325678391,0.389512,58692.0,58689.0,0.08799374]
[1617325678590,0.389512,58692.0,58690.0,0.08798369]
[1617325679013,0.389512,58692.0,58686.0,0.004]
[1617325679214,0.1278,58696.0,58681.0,0.006]
[1617325679415,0.1278,58696.0,58687.0,0.08800733]
[1617325679616,0.383384,58696.0,58687.0,0.004]
[1617325679814,0.383384,58696.0,58688.0,0.08800527]
[1617325680017,0.389512,58695.0,58688.0,0.08800527]
[1617325680218,0.383384,58696.0,58688.0,1.08010527]
[1617325680418,0.340779,58703.0,58689.0,0.389512]
[1617325680617,0.27139948,58702.0,58691.0,0.006]
[1617325681014,0.389512,58701.0,58691.0,0.006]
[1617325681218,0.16,58700.0,58692.0,0.08791079]
[1617325681422,0.389512,58699.0,58692.0,0.08791079]
[1617325683222,0.414569,58698.0,58692.0,0.08791079]
[1617325683422,0.389512,58694.0,58692.0,0.08791079]
[1617325683623,2.06091148,58693.0,58679.0,0.08798567]
[1617325683825,1.789512,58693.0,58681.0,0.0066]
[1617325684043,0.365,58692.0,58682.0,0.9921]
[1617325684441,0.27139948,58701.0,58685.0,0.0034]
[1617325684640,0.27139948,58701.0,58689.0,0.0066]
[1617325684839,0.389512,58700.0,58689.0,0.0066]
[1617325685045,0.614512,58700.0,58691.0,0.1]
[1617325685242,0.255585,58695.0,58691.0,0.1]
[1617325685442,0.614512,58700.0,58691.0,0.1]
[1617325685443,0.389512,58694.0,58692.0,0.08767256]
[1617325686040,0.29315592,58700.0,58692.0,0.08767256]
[1617325686242,0.389512,58699.0,58692.0,0.09107256]
[1617325686445,0.29,58699.0,58695.0,0.11006124]
[1617325686875,0.29,58699.0,58696.0,0.08758527]
[1617325687071,0.29,58699.0,58696.0,0.52618527]
[1617325687373,0.225,58700.0,58697.0,0.9921]
[1617325687574,0.225,58700.0,58698.0,0.389512]
[1617325687775,0.225,58700.0,58699.0,3.311612]
[1617325687972,0.225,58700.0,58699.0,3.091612]
[1617325688173,0.225,58700.0,58699.0,3.33044622]
[1617325688372,0.225,58700.0,58699.0,3.49944622]
[1617325688570,0.225,58700.0,58699.0,4.13444622]
[1617325688771,0.225,58700.0,58699.0,4.38993922]
[1617325689395,0.5638,58710.0,58699.0,4.38993922]
[1617325689596,0.5638,58710.0,58709.0,0.13137306]
[1617325689995,0.5638,58710.0,58709.0,0.21869098]
[1617325690197,0.389512,58710.0,58709.0,0.13137306]
[1617325690799,0.389512,58710.0,58709.0,1.12877306]
[1617325690998,1.170206,58717.0,58709.0,1.12877306]
[1617325691232,0.389512,58716.0,58709.0,1.12877306]
[1617325691431,0.684512,58716.0,58709.0,1.12877306]
[1617325691630,0.683872,58716.0,58709.0,1.12877306]
[1617325691841,0.683872,58716.0,58709.0,0.54877306]
[1617325692029,0.683872,58716.0,58709.0,0.13137306]
[1617325692231,0.28,58715.0,58709.0,0.13137306]
[1617325692432,0.389512,58714.0,58709.0,0.13137306]
[1617325693231,0.255,58713.0,58709.0,0.13137306]
[1617325693431,0.381969,58712.0,58709.0,0.13137306]
[1617325693630,0.275,58711.0,58709.0,0.13137306]
[1617325693832,0.90191,58717.0,58709.0,0.13137306]
[1617325694031,0.389486,58716.0,58709.0,0.13137306]
[1617325694442,0.372446,58716.0,58709.0,0.13137306]
[1617325694641,0.355406,58716.0,58709.0,0.13137306]
[1617325694846,0.265,58715.0,58709.0,0.13137306]
[1617325695044,0.389486,58714.0,58709.0,0.13137306]
[1617325696042,0.29,58713.0,58709.0,0.13137306]
[1617325696241,0.275,58711.0,58709.0,0.13137306]
[1617325696446,0.90191,58717.0,58709.0,0.13137306]
[1617325696843,0.255,58716.0,58709.0,0.13137306]
[1617325697472,0.2673587,58715.0,58709.0,0.13137306]
[1617325697673,0.510491,58716.0,58702.0,0.255481]
[1617325697874,0.25,58715.0,58702.0,0.0044]
[1617325698273,0.25,58715.0,58714.0,0.00290713]
[1617325698474,0.25,58715.0,58708.0,0.09663206]
[1617325698672,0.2,58714.0,58708.0,0.09663206]
[1617325699688,0.455504,58714.0,58708.0,0.09663206]
[1617325700089,0.389483,58713.0,58708.0,0.09663206]
[1617325700689,0.389483,58713.0,58704.0,0.0058]
[1617325701291,0.315,58712.0,58704.0,0.0058]
[1617325701691,0.22,58711.0,58704.0,0.0058]
[1617325701893,0.255504,58714.0,58704.0,0.0058]
[1617325702718,0.255504,58714.0,58713.0,0.0029053]
[1617325702917,0.644987,58714.0,58713.0,0.0029053]
[1617325703319,0.944987,58714.0,58707.0,0.00290201]
[1617325703519,0.307437,58713.0,58707.0,0.00290201]
[1617325704320,0.255523,58712.0,58707.0,0.00290201]
[1617325704627,3.134557,58708.0,58707.0,0.00290201]
[1617325704827,3.134557,58708.0,58704.0,0.00290364]
[1617325705047,2.319483,58705.0,58704.0,0.00290364]
[1617325705250,3.307483,58705.0,58704.0,0.00290364]
[1617325705650,3.307483,58705.0,58703.0,0.00290441]
[1617325705850,2.5047957,58704.0,58703.0,0.00290441]
[1617325706051,2.237437,58704.0,58703.0,0.00290441]
[1617325706287,2.862437,58704.0,58703.0,0.00290441]
[1617325708691,2.862437,58704.0,58702.0,0.00290489]
[1617325708891,3.1818417,58703.0,58702.0,0.00290489]
[1617325709090,2.914483,58703.0,58702.0,0.00290489]
[1617325709490,2.914483,58703.0,58691.0,0.1]
[1617325709691,0.555,58702.0,58692.0,0.0052]
[1617325709892,0.25556,58700.0,58692.0,0.0052]
[1617325710096,0.389483,58699.0,58692.0,0.0052]
[1617325710293,0.555,58702.0,58693.0,0.06]
[1617325710495,0.389483,58701.0,58693.0,0.06]
[1617325710694,0.389483,58701.0,58695.0,0.0048]
[1617325710894,0.389483,58701.0,58696.0,0.061]
[1617325712092,0.389483,58701.0,58693.0,0.061]
[1617325712292,0.389483,58701.0,58696.0,0.05]
[1617325712695,0.389483,58701.0,58697.0,0.061]
[1617325714922,0.165,58701.0,58697.0,0.061]
[1617325715326,0.32367311,58709.0,58697.0,0.061]
[1617325715540,0.389483,58708.0,58697.0,0.061]
[1617325715741,0.389483,58708.0,58698.0,0.0048]
[1617325715940,0.389483,58708.0,58699.0,0.08595576]
[1617325716140,0.49,58707.0,58699.0,0.08595576]
[1617325716341,0.307437,58706.0,58700.0,0.07]
[1617325716541,0.255,58705.0,58700.0,0.13]
[1617325716746,0.255,58705.0,58701.0,0.08594338]
[1617325716747,0.389483,58704.0,58701.0,0.08594338]
[1617325716942,0.614483,58704.0,58702.0,0.071]
[1617325717145,0.389483,58704.0,58703.0,0.0859538]
[1617325717544,1.259483,58704.0,58703.0,0.0859538]
[1617325717745,0.389483,58704.0,58703.0,0.0859538]
[1617325717946,0.389483,58704.0,58703.0,0.1459538]
[1617325718573,1.189483,58704.0,58703.0,0.1459538]
[1617325718770,1.189483,58704.0,58703.0,0.2169538]
[1617325719171,0.389483,58704.0,58703.0,0.2169538]
[1617325719373,0.614483,58704.0,58703.0,0.2169538]
[1617325719573,0.999483,58704.0,58703.0,0.2169538]
[1617325719973,0.389483,58704.0,58703.0,0.2169538]
[1617325720575,0.38750142,58704.0,58703.0,0.2169538]
[1617325722543,1.06250142,58704.0,58703.0,0.2169538]
[1617325722738,0.53250142,58704.0,58703.0,0.2169538]
[1617325722939,0.53250142,58704.0,58703.0,0.0859538]
[1617325723144,0.53250142,58704.0,58703.0,0.05825206]
[1617325723338,0.53250142,58704.0,58703.0,0.11825206]
[1617325723538,2.05250142,58704.0,58703.0,0.11825206]
[1617325723739,2.05250142,58704.0,58703.0,0.27426331]
[1617325723939,2.05250142,58704.0,58703.0,0.18825206]
[1617325724139,2.05250142,58704.0,58703.0,0.27426078]
[1617325724539,0.53250142,58704.0,58703.0,0.27426078]
[1617325725142,0.94980142,58704.0,58703.0,0.08600872]
[1617325725344,0.94980142,58704.0,58702.0,0.05825593]
[1617325725546,0.28,58703.0,58702.0,0.05825593]
[1617325725749,0.275,58703.0,58702.0,0.81825593]
[1617325725949,0.06813618,58714.0,58703.0,0.53284493]
[1617325726148,0.5968,58716.0,58704.0,0.12822756]
[1617325726347,0.03434231,58713.0,58705.0,0.06]
[1617325726550,1.034518,58711.0,58705.0,0.20414501]
[1617325726749,1.034518,58711.0,58706.0,0.15693246]
[1617325726951,1.034518,58711.0,58707.0,0.08593031]
[1617325727348,1.034518,58711.0,58708.0,0.07]
[1617325727550,0.505,58710.0,58708.0,0.07]
[1617325727752,0.505,58710.0,58709.0,0.08592838]
[1617325727951,0.810415,58710.0,58709.0,0.08592838]
[1617325729369,1.570415,58710.0,58709.0,0.08592838]
[1617325729972,0.55,58709.0,58702.0,0.08600522]
[1617325730174,0.127769,58707.0,58699.0,0.08601803]
[1617325730374,0.305415,58706.0,58700.0,0.08604694]
[1617325730573,0.389518,58702.0,58694.0,0.0860508]
[1617325730772,0.17547361,58701.0,58693.0,0.11512807]
[1617325730975,0.305415,58700.0,58693.0,0.11512807]
[1617325731392,0.305415,58700.0,58694.0,0.08605662]
[1617325731596,0.555979,58700.0,58693.0,0.08605816]
[1617325731794,0.300415,58700.0,58692.0,0.08607015]
[1617325731996,0.17553515,58706.0,58692.0,0.08607015]
[1617325732193,0.389545,58705.0,58694.0,0.0056]
[1617325732593,0.389545,58705.0,58695.0,0.08606742]
[1617325733821,0.645094,58705.0,58695.0,0.08606742]
[1617325734022,0.29,58704.0,58695.0,0.08606742]
[1617325734222,0.300384,58703.0,58695.0,0.08606742]
[1617325735022,0.255561,58699.0,58695.0,0.08606742]
[1617325735223,0.534545,58698.0,58695.0,0.08606742]
[1617325735620,0.145,58698.0,58695.0,0.08606742]
[1617325735823,0.255561,58699.0,58692.0,0.25049268]
[1617325736021,0.255561,58699.0,58693.0,0.4754273]
[1617325736486,0.255561,58699.0,58694.0,0.0858293]
[1617325736677,0.255561,58699.0,58694.0,0.4753743]
[1617325736875,0.255561,58699.0,58694.0,0.54481144]
[1617325737074,0.255561,58699.0,58695.0,0.08580506]
[1617325737475,0.127781,58702.0,58694.0,0.15526644]
[1617325737879,0.127781,58702.0,58696.0,0.08580808]
[1617325738076,0.127781,58702.0,58694.0,0.15526644]
[1617325738077,0.389545,58701.0,58694.0,0.15526644]
[1617325739481,0.389545,58701.0,58693.0,0.15526451]
[1617325739681,0.127781,58702.0,58693.0,0.15526451]
[1617325740682,0.127781,58702.0,58695.0,0.1552321]
[1617325740882,0.255536,58705.0,58695.0,0.1552321]
[1617325741281,0.22,58704.0,58695.0,0.1552321]
[1617325741488,0.22,58704.0,58695.0,0.24092706]
[1617325741704,0.22,58704.0,58696.0,0.15502974]
[1617325741904,0.127768,58707.0,58695.0,0.24076186]
[1617325742111,0.255529,58709.0,58697.0,1.08296922]
[1617325742310,2.6554,58712.0,58698.0,1.2594587]
[1617325742510,0.56,58711.0,58699.0,0.15496526]
[1617325742707,0.56,58711.0,58700.0,0.1549402]
[1617325742909,0.56,58711.0,58701.0,0.0062]
[1617325743105,0.5968,58716.0,58701.0,0.12457075]
[1617325743512,0.5968,58716.0,58712.0,0.05809837]
[1617325743707,0.389545,58715.0,58712.0,0.05809837]
[1617325743907,0.305,58714.0,58712.0,0.05809837]
[1617325744110,0.305,58714.0,58713.0,0.05808727]
[1617325744322,0.605384,58714.0,58713.0,0.05808727]
[1617325744722,0.605384,58714.0,58712.0,0.08559555]
[1617325744922,0.389545,58713.0,58712.0,0.08559555]
[1617325745122,0.389545,58713.0,58711.0,0.28003622]
[1617325745326,0.215,58712.0,58711.0,0.28003622]
[1617325746122,0.215,58712.0,58711.0,0.72003622]
[1617325746323,0.127743,58721.0,58711.0,0.72003622]
[1617325746525,0.389545,58716.0,58711.0,0.72003622]
[1617325746731,0.4531,58722.0,58712.0,0.08555058]
[1617325747354,0.225,58716.0,58712.0,0.08555058]
[1617325747752,0.22,58716.0,58712.0,0.08555058]
[1617325748556,0.389545,58715.0,58712.0,0.34099458]
[1617325748954,0.245,58714.0,58713.0,0.08534814]
[1617325749153,0.545384,58714.0,58713.0,0.08534814]
[1617325751176,0.545384,58714.0,58712.0,0.08500956]
[1617325751421,0.624545,58713.0,58712.0,0.08500956]
[1617325751617,0.235,58713.0,58712.0,0.08500956]
[1617325753427,0.972465,58713.0,58712.0,0.08500956]
[1617325758051,2.272465,58713.0,58704.0,0.08470413]
[1617325758252,0.127757,58711.0,58701.0,0.05749593]
[1617325758450,0.389545,58710.0,58701.0,0.05749593]
[1617325759449,0.255513,58709.0,58701.0,0.05749593]
[1617325759651,0.300384,58708.0,58700.0,0.05751606]
[1617325759857,0.395,58708.0,58700.0,0.06111606]
[1617325760077,0.127757,58711.0,58701.0,0.05750737]
[1617325760278,0.127757,58711.0,58702.0,0.05749739]
[1617325760478,0.06813299,58716.0,58703.0,0.05748916]
[1617325760676,0.215,58715.0,58703.0,0.05748916]
[1617325760879,0.215,58715.0,58704.0,0.05748046]
[1617325761083,0.215,58715.0,58704.0,0.14216469]
[1617325761278,0.215,58715.0,58705.0,0.09007792]
[1617325761480,0.215,58715.0,58706.0,0.08467672]
[1617325761481,0.215,58714.0,58706.0,0.08467672]
[1617325762280,0.215,58714.0,58705.0,0.14758302]
[1617325762484,0.215,58714.0,58707.0,0.08472547]
[1617325762485,0.644545,58713.0,58707.0,0.08472547]
[1617325762702,0.644545,58713.0,58706.0,0.08494266]
[1617325762902,0.644545,58713.0,58712.0,0.05766007]
[1617325763303,0.345,58712.0,58706.0,0.08494266]
[1617325763501,0.300384,58711.0,58706.0,0.08494266]
[1617325765322,0.145,58710.0,58706.0,0.08494266]
[1617325765524,0.255492,58714.0,58701.0,0.1581437]
[1617325765525,0.544545,58709.0,58701.0,0.1581437]
[1617325765725,0.255492,58714.0,58701.0,0.1581437]
[1617325765925,0.255492,58714.0,58702.0,0.08540962]
[1617325766323,0.389545,58713.0,58702.0,0.08540962]
[1617325766571,0.0681335,58709.0,58702.0,0.08540962]
[1617325766768,0.300384,58708.0,58702.0,0.08540962]
[1617325767573,0.3236505,58709.0,58700.0,0.004]
[1617325768169,0.3236505,58709.0,58701.0,0.08519034]
[1617325769774,0.0681335,58709.0,58701.0,0.08519034]
[1617325770378,0.127747,58713.0,58702.0,1.381645]
[1617325770580,0.127747,58713.0,58704.0,0.006]
[1617325770784,0.90191,58717.0,58712.0,0.05773516]
[1617325770981,0.389545,58716.0,58713.0,0.05770052]
[1617325771584,0.389545,58716.0,58712.0,0.08501092]
[1617325771585,0.389545,58716.0,58714.0,0.05767689]
[1617325771783,0.389545,58716.0,58715.0,0.05768073]
[1617325771980,0.604545,58716.0,58715.0,0.05768073]
[1617325772179,0.604545,58716.0,58715.0,0.13770044]
[1617325772582,0.604545,58716.0,58715.0,0.05268073]
[1617325772781,0.215,58716.0,58715.0,0.05268073]
[1617325772985,0.215,58716.0,58715.0,0.90497987]
[1617325773804,0.90191,58717.0,58715.0,0.90497987]
[1617325774005,0.90191,58717.0,58716.0,1.16490622]
[1617325774603,0.90191,58717.0,58716.0,0.08490622]
[1617325774808,0.90191,58717.0,58716.0,0.86490622]
[1617325775006,0.90191,58717.0,58716.0,0.78]
[1617325775204,0.90191,58717.0,58716.0,0.86490137]
[1617325775825,0.90191,58717.0,58716.0,0.08490137]
[1617325776027,1.291455,58717.0,58716.0,0.08490137]
[1617325776228,1.451455,58717.0,58711.0,0.08491215]
[1617325776428,1.06191,58717.0,58710.0,0.08492726]
[1617325776626,1.06191,58717.0,58712.0,0.0849346]
[1617325776828,0.90191,58717.0,58712.0,0.0849346]
[1617325777027,0.90191,58717.0,58710.0,0.08494287]
[1617325778027,0.16,58716.0,58710.0,0.08494287]
[1617325779652,0.06812691,58715.0,58710.0,0.08494287]
[1617325780259,0.225,58714.0,58710.0,0.08494287]
[1617325780455,0.235,58713.0,58702.0,0.08501799]
[1617325780657,0.235,58713.0,58702.0,0.09041799]
[1617325781077,0.195,58712.0,58703.0,0.08502105]
[1617325783309,0.389545,58711.0,58703.0,0.08502105]
[1617325783511,0.515384,58710.0,58703.0,0.08502105]
[1617325783729,0.71126699,58710.0,58703.0,0.08502105]
[1617325783929,0.175,58709.0,58703.0,0.08502105]
[1617325785131,0.19588299,58710.0,58703.0,0.08502105]
[1617325786745,0.19588299,58710.0,58704.0,0.389545]
[1617325786944,0.45138899,58710.0,58704.0,0.389545]
[1617325787144,0.389545,58709.0,58705.0,0.0851266]
[1617325787342,0.6569037,58709.0,58703.0,0.0851158]
[1617325787541,0.165,58708.0,58703.0,0.0851158]
[1617325787744,0.300384,58707.0,58702.0,0.08513599]
[1617325787946,0.165,58708.0,58704.0,0.08515148]
[1617325788347,0.255518,58706.0,58703.0,0.08514851]
[1617325788543,0.255518,58706.0,58700.0,0.08516933]
[1617325788745,0.2,58705.0,58697.0,0.15414413]
[1617325788960,0.23,58704.0,58697.0,0.15414413]
[1617325789159,0.255518,58706.0,58697.0,0.15414413]
[1617325789960,0.06814016,58703.0,58697.0,0.15414413]
[1617325790162,0.23214016,58703.0,58697.0,0.15414413]
[1617325790366,0.389545,58702.0,58696.0,0.08517522]
[1617325790765,0.17,58701.0,58698.0,0.08534129]
[1617325790965,0.300384,58700.0,58693.0,0.15439368]
[1617325791162,0.18,58699.0,58693.0,0.15439368]
[1617325791584,0.06814016,58703.0,58692.0,0.23998947]
[1617325791986,0.06814016,58703.0,58693.0,0.15460429]
[1617325791987,0.162,58702.0,58693.0,0.15460429]
[1617325792192,0.74212,58698.0,58692.0,0.24002716]
[1617325792586,0.175,58697.0,58692.0,0.24002716]
[1617325792788,0.175,58697.0,58692.0,0.08539872]
[1617325793187,0.175,58697.0,58693.0,0.08548167]
[1617325793391,0.165,58697.0,58693.0,0.08548167]
[1617325793590,0.18,58696.0,58692.0,0.08548181]
[1617325793787,0.24814934,58696.0,58694.0,0.08548147]
[1617325793991,0.24814934,58696.0,58693.0,0.08547653]
[1617325794413,0.24814934,58696.0,58695.0,0.08547601]
[1617325794612,0.24814934,58696.0,58694.0,0.0853283]
[1617325794812,0.24814934,58696.0,58695.0,0.08532334]
[1617325795014,0.24814934,58696.0,58692.0,0.08534261]
[1617325795215,0.24814934,58696.0,58695.0,0.08534317]
[1617325795614,0.24814934,58696.0,58693.0,0.08534543]
[1617325795816,0.24814934,58696.0,58692.0,0.08519166]
[1617325796417,0.2,58695.0,58692.0,0.08519166]
[1617325797851,0.266125,58694.0,58692.0,0.08519166]
[1617325798053,0.389545,58693.0,58692.0,0.08519166]
[1617325798256,0.649545,58693.0,58692.0,0.08519166]
[1617325798455,0.26,58693.0,58692.0,0.08519166]
[1617325798652,0.649545,58693.0,58692.0,0.08519166]
[1617325798854,0.26,58693.0,58692.0,0.08519166]
[1617325799479,0.26,58693.0,58692.0,0.09119166]
[1617325799680,0.649545,58693.0,58692.0,0.09119166]
[1617325800082,0.26,58693.0,58692.0,0.09119166]
[1617325800884,0.649545,58693.0,58692.0,0.08519166]
[1617325801084,0.26,58693.0,58692.0,0.08519166]
[1617325801883,0.26,58693.0,58691.0,0.1]
[1617325802090,0.255,58692.0,58691.0,0.1]
[1617325805711,0.255579,58693.0,58691.0,0.1]
[1617325806114,0.255579,58693.0,58692.0,0.08658829]
[1617325806311,0.255579,58693.0,58692.0,1.23658829]
[1617325806514,0.255579,58693.0,58692.0,1.62613329]
[1617325806713,0.255579,58693.0,58692.0,1.77619571]
[1617325806911,0.255579,58693.0,58692.0,0.62619571]
[1617325807119,0.255579,58693.0,58692.0,0.47613329]
[1617325807531,0.255579,58693.0,58692.0,0.08658829]
[1617325808134,0.06814934,58696.0,58692.0,0.08658829]
[1617325808342,0.135,58695.0,58692.0,0.08658829]
[1617325808535,0.15051008,58694.0,58692.0,0.08658829]
[1617325808733,0.135,58695.0,58692.0,0.08658829]
[1617325809334,0.41557,58694.0,58692.0,0.08658829]
[1617325809737,0.82216,58694.0,58692.0,0.08658829]
[1617325810162,0.235,58693.0,58692.0,0.08658829]
[1617325810561,1.395,58693.0,58692.0,0.08658829]
[1617325810762,0.235,58693.0,58692.0,0.08658829]
[1617325813408,0.785,58693.0,58692.0,0.08658829]
[1617325813810,1.174545,58693.0,58692.0,0.08658829]
[1617325814412,2.554545,58693.0,58692.0,0.08658829]
[1617325814617,2.79775118,58693.0,58692.0,0.08658829]
[1617325814814,2.84775118,58693.0,58692.0,0.08658829]
[1617325815416,3.14775118,58693.0,58692.0,0.08658829]
[1617325815616,3.19775118,58693.0,58692.0,0.08658829]
[1617325815819,2.23,58692.0,58691.0,0.01615022]
[1617325816012,3.450384,58692.0,58691.0,0.01615022]
[1617325816217,2.23,58691.0,58679.0,0.1571724]
[1617325816415,0.163,58683.0,58678.0,0.15721145]
[1617325816619,1.05045538,58682.0,58676.0,0.15723966]
[1617325816815,0.340882,58680.0,58676.0,0.15723966]
[1617325817017,2.09,58677.0,58676.0,0.15723966]
[1617325817216,2.390384,58677.0,58676.0,0.15223966]
[1617325817844,2.390384,58677.0,58664.0,0.0401479]
[1617325818046,0.255675,58671.0,58664.0,0.0401479]
[1617325819041,0.383513,58671.0,58664.0,0.0401479]
[1617325819239,0.65995034,58670.0,58664.0,0.0401479]
[1617325819439,0.205,58669.0,58664.0,0.0401479]
[1617325819839,0.60093896,58669.0,58664.0,0.0401479]
[1617325820042,0.205,58669.0,58664.0,0.0401479]
[1617325820242,0.255685,58668.0,58664.0,0.0401479]
[1617325820461,0.520685,58668.0,58664.0,0.0401479]
[1617325823686,0.28,58667.0,58664.0,0.0401479]
[1617325825719,0.67593896,58667.0,58666.0,0.0019624]
[1617325825920,2.185702,58666.0,58665.0,0.00196352]
[1617325826117,2.465702,58666.0,58665.0,0.00196352]
[1617325826318,0.535702,58666.0,58664.0,0.04005502]
[1617325826519,0.43,58665.0,58664.0,0.04005502]
[1617325826756,0.255702,58666.0,58664.0,0.03711142]
[1617325826955,0.255702,58666.0,58664.0,0.04005515]
[1617325826956,0.65164096,58666.0,58664.0,0.04005515]
[1617325827156,0.39593896,58666.0,58665.0,0.00294323]
[1617325827355,0.795,58666.0,58665.0,0.00294323]
[1617325827556,0.155,58666.0,58665.0,0.00294323]
[1617325827763,0.255678,58670.0,58665.0,0.00294323]
[1617325827956,0.255678,58670.0,58664.0,0.05673025]
[1617325828160,0.255678,58670.0,58666.0,0.00294367]
[1617325828556,0.255678,58670.0,58664.0,0.04005515]
[1617325829160,0.965175,58669.0,58664.0,0.04005515]